bitfinex/quotes_BTCUSD_20241119
["timestamp","ask_amount","ask_price","bid_price","bid_amount"]
[1731987571199,0.23559651,91417.0,91416.0,0.0008545]
[1731987571660,0.23559651,91417.0,91416.0,0.1102445]
[1731987572104,0.22969805,91417.0,91416.0,0.1102445]
[1731987572314,0.21518261,91417.0,91416.0,0.1102445]
[1731987573035,0.20718261,91417.0,91416.0,0.1102445]
[1731987575595,0.20128415,91417.0,91416.0,0.1102445]
[1731987576746,0.22170017,91417.0,91416.0,0.1102445]
[1731987576892,0.22759863,91417.0,91416.0,0.1102445]
[1731987578071,0.20718261,91417.0,91416.0,0.1102445]
[1731987578638,0.22759996,91417.0,91416.0,0.1102445]
[1731987579049,0.20718261,91417.0,91416.0,0.1102445]
[1731987579637,0.22760142,91417.0,91416.0,0.1102445]
[1731987580542,0.03114041,91417.0,91416.0,0.1102445]
[1731987580731,0.00589846,91419.0,91416.0,0.0008545]
[1731987581061,0.11496101,91419.0,91418.0,0.109387]
[1731987581241,0.13538131,91419.0,91418.0,0.109387]
[1731987582421,0.21838131,91419.0,91418.0,0.109387]
[1731987582828,0.25106464,91419.0,91418.0,0.109387]
[1731987584091,0.25106464,91419.0,91418.0,0.011]
[1731987584596,0.25106464,91419.0,91416.0,0.0008545]
[1731987584811,0.00589846,91417.0,91416.0,0.1102445]
[1731987585016,0.26298131,91417.0,91416.0,0.1102445]
[1731987585234,0.2956749,91417.0,91416.0,0.1102445]
[1731987585436,0.30632269,91417.0,91416.0,0.0008545]
[1731987585828,0.41571069,91417.0,91416.0,0.0008545]
[1731987586029,0.30632269,91417.0,91416.0,0.0008545]
[1731987587993,0.30637579,91417.0,91416.0,0.0008545]
[1731987588207,0.29837579,91417.0,91416.0,0.0008545]
[1731987589403,0.31204638,91417.0,91416.0,0.0008545]
[1731987590612,0.31304638,91417.0,91416.0,0.0008545]
[1731987590815,0.31304638,91417.0,91416.0,0.1102445]
[1731987591588,0.31304638,91417.0,91416.0,0.0008545]
[1731987591589,0.42243438,91417.0,91416.0,0.0008545]
[1731987591933,0.31204638,91417.0,91416.0,0.0008545]
[1731987592357,0.31304638,91417.0,91416.0,0.0008545]
[1731987592991,0.42243438,91417.0,91416.0,0.0008545]
[1731987593216,0.43243438,91417.0,91416.0,0.0008545]
[1731987593836,0.46515253,91417.0,91416.0,0.0008545]
[1731987594248,0.43243438,91417.0,91416.0,0.0008545]
[1731987594460,0.46519287,91417.0,91416.0,0.0008545]
[1731987596130,0.47519287,91417.0,91416.0,0.0008545]
[1731987596965,0.44243438,91417.0,91416.0,0.0008545]
[1731987597403,0.46543438,91417.0,91416.0,0.0008545]
[1731987601035,0.41226739,91417.0,91416.0,0.0008545]
[1731987601248,0.46549077,91417.0,91416.0,0.0008545]
[1731987603406,0.46719977,91417.0,91416.0,0.0008545]
[1731987603789,0.45919977,91417.0,91416.0,0.0008545]
[1731987606542,0.60644268,91417.0,91416.0,0.0008545]
[1731987606768,1.11801759,91417.0,91416.0,0.0008545]
[1731987606989,0.92169126,91417.0,91416.0,0.0008545]
[1731987607851,0.92069126,91417.0,91416.0,0.0008545]
[1731987608065,0.93069126,91417.0,91416.0,0.0008545]
[1731987608499,0.55819977,91417.0,91416.0,0.0008545]
[1731987608713,0.92061417,91417.0,91416.0,0.0008545]
[1731987608919,0.93361417,91417.0,91416.0,0.0018545]
[1731987609376,0.71845158,91417.0,91416.0,0.0018545]
[1731987609993,0.57119977,91417.0,91416.0,0.0018545]
[1731987610635,0.57117194,91417.0,91416.0,0.0018545]
[1731987611074,0.73562849,91417.0,91416.0,0.0018545]
[1731987611279,1.17891779,91417.0,91416.0,0.0018545]
[1731987611475,1.17891779,91417.0,91404.0,0.0008542]
[1731987611476,0.274403,91405.0,91404.0,0.0008542]
[1731987611799,0.54228675,91405.0,91404.0,0.0008542]
[1731987612598,0.54228675,91405.0,91404.0,0.01794965]
[1731987614921,0.55128675,91405.0,91404.0,0.01894965]
[1731987616100,0.65128675,91405.0,91404.0,0.01894965]
[1731987616308,0.74940283,91405.0,91404.0,0.01894965]
[1731987616526,0.65128675,91405.0,91404.0,0.01894965]
[1731987616918,0.69612842,91405.0,91404.0,0.01894965]
[1731987618632,0.62126228,91405.0,91404.0,0.01894965]
[1731987619584,0.62126228,91405.0,91404.0,0.0018542]
[1731987620520,0.65398733,91405.0,91404.0,0.0018542]
[1731987621421,0.68811531,91405.0,91404.0,0.0018542]
[1731987621669,0.63493711,91405.0,91404.0,0.0018542]
[1731987621875,0.68811939,91405.0,91404.0,0.0018542]
[1731987622658,0.68811939,91405.0,91404.0,0.0189503]
[1731987625662,0.68811939,91405.0,91391.0,0.0008543]
[1731987625663,0.244405,91403.0,91391.0,0.0008543]
[1731987625871,0.54672466,91403.0,91391.0,0.0008543]
[1731987626107,0.33090421,91392.0,91391.0,0.0008543]
[1731987626307,0.52982387,91392.0,91391.0,0.0008543]
[1731987626726,0.54034574,91392.0,91391.0,0.0008543]
[1731987627168,0.47348863,91392.0,91391.0,0.0008543]
[1731987627373,0.48716546,91392.0,91391.0,0.0008543]
[1731987627590,0.58206956,91392.0,91391.0,0.0018543]
[1731987627807,0.60252415,91392.0,91391.0,0.0018543]
[1731987628032,0.60252415,91392.0,91391.0,0.00083996]
[1731987628494,0.70252415,91392.0,91391.0,0.00083996]
[1731987628905,0.98301508,91392.0,91391.0,0.00083996]
[1731987629146,1.15089217,91392.0,91391.0,0.00083996]
[1731987629380,0.121447,91368.0,91367.0,0.01794381]
[1731987629592,0.61903429,91368.0,91367.0,0.01794381]
[1731987630001,0.53764808,91368.0,91367.0,0.01794381]
[1731987631095,0.61903429,91368.0,91367.0,0.01794381]
[1731987631298,0.62803429,91368.0,91367.0,0.01794381]
[1731987631725,0.72803429,91368.0,91367.0,0.01794381]
[1731987631956,0.75015832,91368.0,91367.0,0.01794381]
[1731987632182,1.11186729,91368.0,91367.0,0.01794381]
[1731987632427,0.75215832,91368.0,91367.0,0.01794381]
[1731987632644,0.89003987,91368.0,91367.0,0.01794381]
[1731987633088,0.91204381,91368.0,91367.0,0.01994381]
[1731987633301,0.74315832,91368.0,91367.0,0.01794381]
[1731987633516,0.76515832,91368.0,91367.0,0.01994381]
[1731987633759,0.75715832,91368.0,91367.0,0.01994381]
[1731987634608,0.75715832,91368.0,91352.0,0.0008543]
[1731987634609,0.40122642,91362.0,91352.0,0.0008543]
[1731987634820,0.57714796,91362.0,91352.0,0.0008543]
[1731987635036,0.57714796,91362.0,91345.0,0.16531095]
[1731987635037,0.136473,91346.0,91345.0,0.06872815]
[1731987635252,0.136473,91346.0,91337.0,0.0017086]
[1731987635253,0.109483,91338.0,91337.0,0.0017086]
[1731987635458,0.27172749,91338.0,91337.0,0.0017086]
[1731987635667,0.28458491,91338.0,91337.0,0.0017086]
[1731987635876,0.29826196,91338.0,91337.0,0.0017086]
[1731987636081,0.28458491,91338.0,91337.0,0.0017086]
[1731987636300,0.29826196,91338.0,91337.0,0.0017086]
[1731987636494,0.28458491,91338.0,91337.0,0.0017086]
[1731987636708,0.19077896,91338.0,91337.0,0.0017086]
[1731987636925,0.17710191,91338.0,91337.0,0.1111926]
[1731987637367,0.16424449,91338.0,91337.0,0.1111926]
[1731987637608,0.19077896,91338.0,91337.0,0.1111926]
[1731987637827,0.17710191,91338.0,91337.0,0.1111926]
[1731987638039,0.17686243,91338.0,91337.0,0.1111926]
[1731987638460,0.17686243,91338.0,91337.0,0.12829875]
[1731987639145,0.17486243,91338.0,91337.0,0.12829875]
[1731987639371,0.17586243,91338.0,91337.0,0.1111926]
[1731987639615,0.17486243,91338.0,91337.0,0.1111926]
[1731987639828,0.17586243,91338.0,91337.0,0.1111926]
[1731987640039,0.17586243,91338.0,91332.0,0.198979]
[1731987640269,0.16200501,91337.0,91336.0,0.109485]
[1731987640749,0.05294246,91337.0,91336.0,0.248685]
[1731987640967,0.03226807,91337.0,91336.0,0.37892834]
[1731987641181,0.02036248,91337.0,91336.0,0.37892834]
[1731987641625,0.001,91338.0,91337.0,0.116]
[1731987641842,0.001,91338.0,91337.0,0.3568734]
[1731987641843,0.02136065,91338.0,91337.0,0.3568734]
[1731987642062,0.001,91338.0,91337.0,0.364684]
[1731987642295,0.16445655,91353.0,91337.0,0.364684]
[1731987642296,0.16445655,91353.0,91352.0,0.233866]
[1731987642501,0.18481797,91353.0,91352.0,0.35810934]
[1731987642723,0.196694,91353.0,91352.0,0.35810934]
[1731987642926,0.03223745,91353.0,91352.0,0.35810934]
[1731987643347,0.02036142,91353.0,91352.0,0.35810934]
[1731987643554,0.16445655,91366.0,91352.0,0.24864334]
[1731987643763,0.17388666,91365.0,91364.0,0.109452]
[1731987644021,0.17388666,91365.0,91339.0,0.230963]
[1731987644022,0.06482411,91365.0,91354.0,0.109463]
[1731987644210,0.218916,91359.0,91345.0,0.109475]
[1731987644425,0.05294808,91358.0,91341.0,0.0906]
[1731987644638,0.109464,91354.0,91347.0,0.109471]
[1731987644848,0.05294808,91353.0,91342.0,0.218957]
[1731987645054,0.05294808,91352.0,91349.0,0.10947]
[1731987645283,0.05294808,91351.0,91344.0,0.218952]
[1731987645505,0.05294808,91350.0,91344.0,0.218952]
[1731987645710,0.05294808,91349.0,91346.0,0.218947]
[1731987645919,0.05294808,91348.0,91347.0,0.109472]
[1731987647017,0.16201063,91348.0,91347.0,0.109472]
[1731987647518,0.17388666,91348.0,91347.0,0.109472]
[1731987648167,0.16588666,91348.0,91347.0,0.109472]
[1731987651863,0.14133836,91348.0,91347.0,0.109472]
[1731987652090,0.14133836,91348.0,91347.0,0.111472]
[1731987653223,0.14133836,91348.0,91347.0,0.002]
[1731987653502,0.15501897,91348.0,91347.0,0.002]
[1731987653633,0.15501906,91348.0,91347.0,0.002]
[1731987654044,0.15501906,91348.0,91346.0,0.109473]
[1731987654288,0.14314303,91347.0,91346.0,0.109473]
[1731987654479,0.15504608,91347.0,91346.0,0.109473]
[1731987655327,0.15508253,91347.0,91346.0,0.109473]
[1731987656594,0.15508253,91347.0,91344.0,0.109475]
[1731987656807,0.03411693,91346.0,91345.0,0.109474]
[1731987657023,0.14317948,91346.0,91345.0,0.109474]
[1731987657446,0.15508253,91346.0,91345.0,0.109474]
[1731987658103,0.18780124,91346.0,91345.0,0.109474]
[1731987662935,0.17980124,91346.0,91345.0,0.109474]
[1731987664759,0.17980102,91346.0,91345.0,0.109474]
[1731987665212,0.17980102,91346.0,91345.0,0.1103291]
[1731987667016,0.1661206,91346.0,91345.0,0.1103291]
[1731987667242,0.17980101,91346.0,91345.0,0.1103291]
[1731987667919,0.1661206,91346.0,91345.0,0.1103291]
[1731987668167,0.15372524,91346.0,91345.0,0.1103291]
[1731987671704,0.15374305,91346.0,91345.0,0.1103291]
[1731987673645,0.16742368,91346.0,91345.0,0.1103291]
[1731987673862,0.15374305,91346.0,91345.0,0.1103291]
[1731987674276,0.16742335,91346.0,91345.0,0.1103291]
[1731987675153,0.18797904,91346.0,91345.0,0.1103291]
[1731987677614,0.37805204,91346.0,91345.0,0.0008551]
[1731987677829,0.37976224,91346.0,91345.0,0.0008551]
[1731987678048,0.37176224,91346.0,91345.0,0.0008551]
[1731987678257,0.37576224,91346.0,91345.0,0.0008551]
[1731987678469,0.42276224,91346.0,91345.0,0.0008551]
[1731987679320,0.52105206,91346.0,91345.0,0.0008551]
[1731987679520,0.42276224,91346.0,91345.0,0.0008551]
[1731987679937,0.52105206,91346.0,91345.0,0.0008551]
[1731987680351,0.42276224,91346.0,91345.0,0.0008551]
[1731987680977,0.004,91343.0,91325.0,0.01]
[1731987681183,0.17607599,91342.0,91330.0,0.109492]
[1731987681388,0.109485,91337.0,91330.0,0.109492]
[1731987681590,0.16239554,91336.0,91330.0,0.109492]
[1731987681796,0.0829,91335.0,91330.0,0.109492]
[1731987682005,0.10906255,91334.0,91330.0,0.109492]
[1731987682208,0.12099301,91334.0,91330.0,0.109492]
[1731987683066,0.12099301,91334.0,91330.0,0.12659911]
[1731987683272,0.12099301,91334.0,91330.0,0.01710711]
[1731987683273,0.109491,91332.0,91330.0,0.01710711]
[1731987683495,0.21855355,91331.0,91330.0,0.01710711]
[1731987683701,0.23044033,91331.0,91330.0,0.01710711]
[1731987684893,0.28370713,91331.0,91330.0,0.01710711]
[1731987687779,0.17421613,91331.0,91330.0,0.01710711]
[1731987687952,0.17417565,91331.0,91330.0,0.01710711]
[1731987688156,0.28366665,91331.0,91330.0,0.01710711]
[1731987689258,0.17417565,91331.0,91324.0,0.0008545]
[1731987689452,0.05322632,91330.0,91325.0,0.109498]
[1731987689640,0.17417394,91329.0,91325.0,0.109498]
[1731987689851,0.05322632,91328.0,91327.0,0.109496]
[1731987690098,0.16228887,91328.0,91324.0,0.0008545]
[1731987690332,0.16228887,91328.0,91326.0,0.109496]
[1731987690333,0.16228887,91327.0,91326.0,0.109496]
[1731987690966,0.18785746,91327.0,91326.0,0.109496]
[1731987691172,0.17417394,91327.0,91326.0,0.109496]
[1731987692028,0.06511139,91327.0,91326.0,0.109496]
[1731987692228,0.06511139,91327.0,91326.0,0.119496]
[1731987692229,0.05322632,91327.0,91326.0,0.119496]
[1731987692662,0.02047166,91327.0,91326.0,0.41651971]
[1731987692876,0.0017102,91346.0,91342.0,0.119478]
[1731987693087,0.20964564,91343.0,91342.0,0.28768998]
[1731987693308,0.03233961,91343.0,91342.0,0.28768998]
[1731987693761,0.02045734,91343.0,91342.0,0.28768998]
[1731987693976,0.02045734,91343.0,91342.0,0.27768998]
[1731987694200,0.02045734,91343.0,91342.0,0.19698998]
[1731987694650,0.02045734,91343.0,91342.0,0.115478]
[1731987694651,0.12951989,91343.0,91342.0,0.115478]
[1731987694874,0.14143371,91343.0,91342.0,0.115478]
[1731987696424,0.1622438,91343.0,91342.0,0.115478]
[1731987696629,0.17415762,91343.0,91342.0,0.115478]
[1731987696801,0.14143371,91343.0,91342.0,0.115478]
[1731987698080,0.17415649,91343.0,91342.0,0.115478]
[1731987698311,0.17415014,91343.0,91342.0,0.115478]
[1731987698517,0.14142782,91343.0,91342.0,0.115478]
[1731987698946,0.17415105,91343.0,91342.0,0.115478]
[1731987699730,0.17415105,91343.0,91342.0,0.109478]
[1731987701359,0.18783211,91343.0,91342.0,0.1103331]
[1731987701582,0.18783206,91343.0,91342.0,0.1103331]
[1731987701812,0.18783931,91343.0,91342.0,0.1103331]
[1731987702503,0.18749698,91343.0,91342.0,0.1103331]
[1731987705005,0.18749698,91343.0,91342.0,0.0008551]
[1731987705221,0.42548338,91343.0,91342.0,0.0008551]
[1731987705496,0.44848338,91343.0,91342.0,0.0008551]
[1731987705707,0.31601174,91343.0,91342.0,0.0038551]
[1731987706121,0.26641174,91343.0,91342.0,0.0038551]
[1731987706343,0.26641174,91343.0,91342.0,0.0008551]
[1731987706772,0.27241174,91343.0,91342.0,0.0008551]
[1731987706976,0.24241174,91343.0,91342.0,0.0008551]
[1731987708142,0.23441174,91343.0,91342.0,0.0008551]
[1731987711569,0.23441174,91343.0,91342.0,0.1103331]
[1731987712024,0.23441174,91343.0,91342.0,0.0008551]
[1731987712239,0.234421,91343.0,91342.0,0.0008551]
[1731987712889,0.234421,91343.0,91342.0,0.1103331]
[1731987713096,0.234421,91343.0,91342.0,0.0008551]
[1731987713307,0.3456082,91343.0,91342.0,0.0008551]
[1731987713752,0.4156082,91343.0,91342.0,0.0008551]
[1731987713959,0.5338615,91343.0,91342.0,0.0008551]
[1731987714191,0.50112018,91343.0,91342.0,0.0008551]
[1731987714839,0.47812018,91343.0,91342.0,0.0008551]
[1731987715528,0.50112018,91343.0,91342.0,0.0008551]
[1731987715741,0.44791554,91343.0,91342.0,0.0008551]
[1731987715962,0.50112869,91343.0,91342.0,0.0008551]
[1731987717001,0.41961671,91343.0,91342.0,0.0008551]
[1731987717703,0.41961671,91343.0,91324.0,0.0008545]
[1731987717704,0.113499,91325.0,91324.0,0.0008545]
[1731987717934,0.41525702,91325.0,91324.0,0.0008545]
[1731987718150,0.42712669,91325.0,91324.0,0.0008545]
[1731987718349,0.42712669,91325.0,91324.0,0.01796397]
[1731987719467,0.42712669,91325.0,91324.0,0.0008545]
[1731987721451,0.55012669,91325.0,91324.0,0.0008545]
[1731987721684,0.64837716,91325.0,91324.0,0.0008545]
[1731987721888,0.6975024,91325.0,91324.0,0.0008545]
[1731987722108,0.91263898,91325.0,91324.0,0.0008545]
[1731987722338,0.69738341,91325.0,91324.0,0.0008545]
[1731987722561,0.69738341,91325.0,91324.0,0.01796575]
[1731987722798,0.69738812,91325.0,91324.0,0.01796575]
[1731987723007,0.91252742,91325.0,91324.0,0.01796575]
[1731987723216,0.69734208,91325.0,91324.0,0.01715935]
[1731987723447,0.91242059,91325.0,91324.0,0.01715935]
[1731987723680,0.91242059,91325.0,91324.0,4.81e-05]
[1731987723890,0.90442059,91325.0,91324.0,4.81e-05]
[1731987724344,0.68930362,91325.0,91324.0,4.81e-05]
[1731987724554,0.90433453,91325.0,91324.0,4.81e-05]
[1731987725948,0.90433453,91325.0,91324.0,4.81e-05]
[1731987726857,0.90633453,91325.0,91324.0,4.81e-05]
[1731987728194,1.10229043,91325.0,91324.0,4.81e-05]
[1731987728396,1.64019043,91325.0,91324.0,4.81e-05]
[1731987728841,1.66234088,91325.0,91324.0,4.81e-05]
[1731987729253,1.46638498,91325.0,91324.0,4.81e-05]
[1731987729705,1.57544753,91325.0,91324.0,4.81e-05]
[1731987729934,1.66234088,91325.0,91324.0,4.81e-05]
[1731987730149,1.46638498,91325.0,91324.0,4.81e-05]
[1731987730363,1.10417714,91325.0,91324.0,4.81e-05]
[1731987730575,1.25104971,91325.0,91324.0,4.81e-05]
[1731987730846,1.46562516,91325.0,91324.0,4.81e-05]
[1731987731074,1.66146398,91325.0,91324.0,4.81e-05]
[1731987731310,1.66146398,91325.0,91312.0,0.0008545]
[1731987731311,0.48352865,91313.0,91312.0,0.0008545]
[1731987731545,0.67127555,91313.0,91312.0,0.0008545]
[1731987732690,0.67127555,91313.0,91312.0,0.01796836]
[1731987733106,0.65759205,91313.0,91312.0,0.01796836]
[1731987734277,0.65739494,91313.0,91312.0,0.01796836]
[1731987737312,0.70225296,91313.0,91312.0,0.01796836]
[1731987737743,0.74606296,91313.0,91312.0,0.01796836]
[1731987737967,0.62174731,91313.0,91312.0,0.01796836]
[1731987738180,0.61374731,91313.0,91312.0,0.01796836]
[1731987738852,0.56824731,91313.0,91312.0,0.01796836]
[1731987739491,0.56824731,91313.0,91312.0,0.0008545]
[1731987739961,0.40237929,91313.0,91312.0,0.0008545]
[1731987740175,0.17386629,91313.0,91312.0,0.0008545]
[1731987740431,0.20651781,91313.0,91312.0,0.1103685]
[1731987740649,0.20651781,91313.0,91312.0,0.0008545]
[1731987741085,0.20651781,91313.0,91312.0,0.1103685]
[1731987741528,0.17386629,91313.0,91312.0,0.01796611]
[1731987741740,0.20652949,91313.0,91312.0,0.01796611]
[1731987741957,0.20652949,91313.0,91312.0,0.0008545]
[1731987742167,0.17386629,91313.0,91312.0,0.0008545]
[1731987742376,0.17386629,91313.0,91312.0,0.1103685]
[1731987742814,0.17386629,91313.0,91312.0,0.12748018]
[1731987743065,0.16207741,91313.0,91312.0,0.12748018]
[1731987743304,0.17576501,91313.0,91312.0,0.12748018]
[1731987743512,0.18748273,91313.0,91312.0,0.12748018]
[1731987744449,0.18748273,91313.0,91312.0,0.01796618]
[1731987744676,0.29699573,91313.0,91312.0,0.01796618]
[1731987745356,0.18748273,91313.0,91312.0,0.01796618]
[1731987745560,0.29699573,91313.0,91312.0,0.01796618]
[1731987745773,0.37519573,91313.0,91312.0,0.01796618]
[1731987746201,0.36150813,91313.0,91312.0,0.01796618]
[1731987748176,0.36321893,91313.0,91312.0,0.01796618]
[1731987749516,0.25370593,91313.0,91297.0,0.0486]
[1731987749735,0.21858155,91309.0,91302.0,0.109525]
[1731987749946,0.1742839,91308.0,91302.0,0.109525]
[1731987750152,0.16207741,91307.0,91302.0,0.109525]
[1731987750480,0.05301486,91306.0,91301.0,0.109527]
[1731987750685,0.16207741,91305.0,91301.0,0.109527]
[1731987750919,0.05301486,91304.0,91301.0,0.109527]
[1731987751147,0.16207741,91303.0,91301.0,0.109527]
[1731987751380,0.06476442,91302.0,91301.0,0.109527]
[1731987751610,0.17382697,91302.0,91301.0,0.109527]
[1731987752072,0.17408968,91302.0,91301.0,0.109527]
[1731987753182,0.17351758,91302.0,91297.0,0.0486]
[1731987753413,0.16234012,91301.0,91300.0,0.109528]
[1731987754083,0.17351853,91301.0,91300.0,0.109528]
[1731987755571,0.17352538,91301.0,91300.0,0.109528]
[1731987756708,0.17352538,91301.0,91300.0,0.186428]
[1731987759164,0.17352538,91301.0,91300.0,0.196428]
[1731987759376,0.03167242,91301.0,91300.0,0.208428]
[1731987759599,0.06445758,91301.0,91300.0,0.208428]
[1731987759756,0.05327917,91301.0,91300.0,0.206428]
[1731987760123,0.02149401,91301.0,91300.0,0.210428]
[1731987760336,0.02149401,91301.0,91300.0,0.2112834]
[1731987761214,0.02149401,91301.0,91300.0,0.2610834]
[1731987762083,0.02049401,91301.0,91300.0,0.2570834]
[1731987762291,0.02049401,91301.0,91300.0,0.30126477]
[1731987762504,0.0017108,91313.0,91300.0,0.30126477]
[1731987762505,0.0017108,91313.0,91312.0,0.109514]
[1731987762780,0.05497164,91313.0,91312.0,0.254214]
[1731987762980,0.02219574,91313.0,91312.0,0.254214]
[1731987763866,0.03119574,91313.0,91312.0,0.255214]
[1731987765168,0.02219574,91313.0,91312.0,0.254214]
[1731987765395,0.02219574,91313.0,91312.0,0.256214]
[1731987767294,0.02219574,91313.0,91312.0,0.29979496]
[1731987768140,0.01419574,91313.0,91312.0,0.29979496]
[1731987770802,0.12325829,91313.0,91312.0,0.121514]
[1731987771261,0.13447825,91313.0,91312.0,0.121514]
[1731987771478,0.16722881,91313.0,91312.0,0.121514]
[1731987771740,0.16722959,91313.0,91304.0,0.219048]
[1731987771958,0.14181389,91312.0,91309.0,0.109517]
[1731987772175,0.03275134,91311.0,91309.0,0.109517]
[1731987772391,0.14181389,91310.0,91307.0,0.10952]
[1731987772612,0.03275134,91309.0,91304.0,0.109524]
[1731987772840,0.14181389,91308.0,91305.0,0.109522]
[1731987773053,0.03275134,91307.0,91305.0,0.109522]
[1731987773276,0.14181389,91306.0,91305.0,0.109522]
[1731987773715,0.15303385,91306.0,91305.0,0.109522]
[1731987775235,0.15603385,91306.0,91305.0,0.109522]
[1731987775694,0.15603385,91306.0,91305.0,0.110522]
[1731987775913,0.15303385,91306.0,91305.0,0.110522]
[1731987776124,0.15303385,91306.0,91305.0,0.109522]
[1731987776328,0.15603385,91306.0,91305.0,0.110522]
[1731987776766,0.15603385,91306.0,91305.0,0.001]
[1731987777857,0.15603385,91306.0,91305.0,0.109523]
[1731987778107,0.15603385,91306.0,91305.0,0.110523]
[1731987778573,0.15603385,91306.0,91300.0,0.0008554]
[1731987778786,0.03275134,91305.0,91300.0,0.1103834]
[1731987779009,0.14181389,91304.0,91301.0,0.109527]
[1731987779230,0.14181389,91304.0,91302.0,0.109525]
[1731987779231,0.03275134,91303.0,91302.0,0.109525]
[1731987779452,0.14181389,91303.0,91302.0,0.109525]
[1731987779888,0.15302503,91303.0,91302.0,0.109525]
[1731987780101,0.17350279,91303.0,91300.0,0.0008554]
[1731987780279,0.16229165,91302.0,91301.0,0.109526]
[1731987780918,0.17350279,91302.0,91301.0,0.109526]
[1731987782005,0.17550279,91302.0,91301.0,0.109526]
[1731987782448,0.17550279,91302.0,91300.0,0.0008554]
[1731987782710,0.2416561,91301.0,91300.0,0.0008554]
[1731987782901,0.36440678,91301.0,91300.0,0.0008554]
[1731987783165,0.36761243,91301.0,91300.0,0.0008554]
[1731987784026,0.40040284,91301.0,91300.0,0.0008554]
[1731987784228,0.36761243,91301.0,91300.0,0.0008554]
[1731987784465,0.40038491,91301.0,91300.0,0.0008554]
[1731987784670,0.36761243,91301.0,91300.0,0.0008554]
[1731987784886,0.26608543,91301.0,91300.0,0.0008554]
[1731987785102,0.37561243,91301.0,91300.0,0.0008554]
[1731987785325,0.3086952,91301.0,91300.0,0.0008554]
[1731987785531,0.32238461,91301.0,91300.0,0.0008554]
[1731987785768,0.37762837,91301.0,91300.0,0.0008554]
[1731987786400,0.36393896,91301.0,91300.0,0.0008554]
[1731987787019,0.36193896,91301.0,91300.0,0.0008554]
[1731987787463,0.37662842,91301.0,91300.0,0.0008554]
[1731987787899,0.40939381,91301.0,91300.0,0.0008554]
[1731987788107,0.37662842,91301.0,91300.0,0.0008554]
[1731987788552,0.77526615,91301.0,91300.0,0.0008554]
[1731987788769,0.7288113,91301.0,91300.0,0.0008554]
[1731987788977,0.99069792,91301.0,91300.0,0.0008554]
[1731987789192,0.9906971,91301.0,91300.0,0.0008554]
[1731987789637,1.18706932,91301.0,91300.0,0.0008554]
[1731987789843,0.9906971,91301.0,91300.0,0.0008554]
[1731987790054,1.18706932,91301.0,91300.0,0.0008554]
[1731987790263,0.62795577,91301.0,91300.0,0.0008554]
[1731987790488,0.99062073,91301.0,91300.0,0.0008554]
[1731987790970,1.18711222,91301.0,91300.0,0.0008554]
[1731987791183,1.18708787,91301.0,91300.0,0.0008554]
[1731987792296,1.18703822,91301.0,91300.0,0.0008554]
[1731987792507,1.18699265,91301.0,91300.0,0.0008554]
[1731987792710,0.99057108,91301.0,91300.0,0.0008554]
[1731987793160,1.18699265,91301.0,91300.0,0.0008554]
[1731987793577,0.97687973,91301.0,91300.0,0.0008554]
[1731987793783,0.61421477,91301.0,91300.0,0.0008554]
[1731987793992,0.76148326,91301.0,91300.0,0.0008554]
[1731987794408,0.77517444,91301.0,91300.0,0.0008554]
[1731987794860,0.62790595,91301.0,91300.0,0.0008554]
[1731987795287,0.77514569,91301.0,91300.0,0.0008554]
[1731987795711,0.77512272,91301.0,91300.0,0.0008554]
[1731987796196,0.64447334,91301.0,91300.0,0.0008554]
[1731987796447,0.18809741,91301.0,91300.0,0.1103844]
[1731987796647,0.17440609,91301.0,91300.0,0.1103844]
[1731987796868,0.17440609,91301.0,91300.0,0.0008554]
[1731987797336,0.17440609,91301.0,91300.0,0.1103844]
[1731987797992,0.17440609,91301.0,91300.0,0.0008554]
[1731987798217,0.17440609,91301.0,91300.0,0.1103844]
[1731987798905,0.16640609,91301.0,91300.0,0.1103844]
[1731987799161,0.16811549,91301.0,91300.0,0.1103844]
[1731987800066,0.13541525,91301.0,91300.0,0.1103844]
[1731987800784,0.1242096,91301.0,91300.0,0.1103844]
[1731987800985,0.13539746,91301.0,91300.0,0.1103844]
[1731987801226,0.16813045,91301.0,91300.0,0.1103844]
[1731987801883,0.13539746,91301.0,91300.0,0.1103844]
[1731987802401,0.16813437,91301.0,91300.0,0.1103844]
[1731987802854,0.13539746,91301.0,91300.0,0.1103844]
[1731987805836,0.01389726,91301.0,91300.0,0.2558844]
[1731987806045,0.0027094,91301.0,91300.0,0.2558844]
[1731987806261,0.02317121,91301.0,91300.0,0.2558844]
[1731987806516,0.0027094,91301.0,91300.0,0.2558844]
[1731987808312,0.0027094,91301.0,91300.0,0.38015211]
[1731987808952,0.0027094,91301.0,91300.0,0.48015211]
[1731987811189,0.0027094,91301.0,91300.0,0.48215211]
[1731987812824,4e-07,91301.0,91300.0,0.49215211]
[1731987813028,0.15816775,91320.0,91300.0,0.49215211]
[1731987813242,0.15816775,91320.0,91319.0,0.24377371]
[1731987813908,0.0776,91336.0,91330.0,0.109493]
[1731987814119,0.2735191,91331.0,91330.0,0.109493]
[1731987814579,0.10906255,91331.0,91330.0,0.109493]
[1731987820449,0.13006255,91331.0,91330.0,0.111493]
[1731987820860,0.14054376,91331.0,91330.0,0.111493]
[1731987824400,0.16094176,91331.0,91330.0,0.111493]
[1731987825382,0.16095107,91331.0,91330.0,0.111493]
[1731987827299,0.16266007,91331.0,91330.0,0.111493]
[1731987828186,0.1873392,91331.0,91330.0,0.111493]
[1731987828398,0.15468363,91331.0,91330.0,0.111493]
[1731987829532,0.26588837,91331.0,91330.0,0.002]
[1731987829760,0.26588837,91331.0,91330.0,0.111493]
[1731987830361,0.2795713,91331.0,91330.0,0.111493]
[1731987830617,0.26588837,91331.0,91330.0,0.111493]
[1731987830833,0.2795713,91331.0,91330.0,0.111493]
[1731987831044,0.26588837,91331.0,91330.0,0.111493]
[1731987831253,0.2795713,91331.0,91330.0,0.111493]
[1731987831463,0.2885713,91331.0,91330.0,0.112493]
[1731987831926,0.28862917,91331.0,91330.0,0.112493]
[1731987833917,0.21012917,91331.0,91330.0,0.112493]
[1731987834780,0.21012917,91331.0,91328.0,0.09822894]
[1731987834998,0.05319278,91330.0,91326.0,0.218995]
[1731987835207,0.14325276,91331.0,91326.0,0.218995]
[1731987835208,0.031709,91331.0,91330.0,0.109493]
[1731987835425,0.05220603,91331.0,91330.0,0.109493]
[1731987835641,0.08500128,91331.0,91330.0,0.109493]
[1731987835969,0.0986841,91331.0,91330.0,0.109493]
[1731987836609,0.07768402,91331.0,91330.0,0.109493]
[1731987836821,0.06400128,91331.0,91330.0,0.109493]
[1731987837040,0.07768392,91331.0,91330.0,0.109493]
[1731987837668,0.08200128,91331.0,91330.0,0.109493]
[1731987837872,0.06400128,91331.0,91330.0,0.109493]
[1731987838331,0.08600128,91331.0,91330.0,0.111493]
[1731987838543,0.04639177,91331.0,91330.0,0.111493]
[1731987838780,0.09969625,91331.0,91330.0,0.1123474]
[1731987839099,0.2087588,91331.0,91330.0,0.1123474]